[Event "December 19 Late 2023"]
[Site "https://www.chess.com"]
[Date "2023.12.19"]
[Round "8"]
[White "Rama, Tejas"]
[Black "Perske, Thore"]
[Result "1-0"]
[Board "56"]
[TimeControl "180+1"]
[WhiteFideId "30907381"]
[BlackFideId "12902195"]
[WhiteElo "2089"]
[BlackElo "2336"]
[WhiteTeam "USA"]
[BlackTeam "GER"]
[WhiteClock "0:00:33"]
[BlackClock "0:00:34"]

1. d4 {[%clk 0:03:00]}  d5 {[%clk 0:02:58]} 2. c4 {[%clk 0:03:00]}  e5 {[%clk 0:02:57]} 3. dxe5 {[%clk 0:03:00]}  d4 {[%clk 0:02:58]} 4. Nf3 {[%clk 0:03:00]}  Nc6 {[%clk 0:02:59]} 5. Nbd2 {[%clk 0:03:00]}  Nge7 {[%clk 0:02:59]} 6. Nb3 {[%clk 0:02:28]}  Nf5 {[%clk 0:02:59]} 7. g3 {[%clk 0:02:26]}  Be6 {[%clk 0:02:57]} 8. Bg2 {[%clk 0:02:23]}  Bxc4 {[%clk 0:02:55]} 9. O-O {[%clk 0:02:23]}  Qd7 {[%clk 0:02:48]} 10. Qc2 {[%clk 0:02:03]}  Be6 {[%clk 0:02:44]} 11. Rd1 {[%clk 0:02:02]}  O-O-O {[%clk 0:02:43]} 12. Bg5 {[%clk 0:01:43]}  Be7 {[%clk 0:02:40]} 13. Nc5 {[%clk 0:01:28]}  Qe8 {[%clk 0:02:27]} 14. Bxe7 {[%clk 0:01:11]}  Qxe7 {[%clk 0:02:27]} 15. Nxb7 {[%clk 0:01:04]}  Kxb7 {[%clk 0:02:24]} 16. Nh4 {[%clk 0:01:04]}  Bd5 {[%clk 0:02:04]} 17. Bxd5 {[%clk 0:00:48]}  Rxd5 {[%clk 0:02:05]} 18. Qb3+ {[%clk 0:00:47]}  Qb4 {[%clk 0:01:40]} 19. Qxd5 {[%clk 0:00:45]}  Nxh4 {[%clk 0:01:39]} 20. Rac1 {[%clk 0:00:43]}  Qa4 {[%clk 0:01:25]} 21. gxh4 {[%clk 0:00:39]}  Kb6 {[%clk 0:01:24]} 22. Qc5+ {[%clk 0:00:37]}  Kb7 {[%clk 0:01:22]} 23. Rc4 {[%clk 0:00:34]}  Qxd1+ {[%clk 0:01:15]} 24. Kg2 {[%clk 0:00:34]}  Qxe2 {[%clk 0:00:41]} 25. Qxc6+ {[%clk 0:00:33]}  Kb8 {[%clk 0:00:39]} 26. Qxc7+ {[%clk 0:00:30]}  Ka8 {[%clk 0:00:36]} 27. Qc6+ {[%clk 0:00:31]}  Kb8 {[%clk 0:00:36]} 28. Rb4+ {[%clk 0:00:32]}  Qb5 {[%clk 0:00:34]} 29. Rxb5# {[%clk 0:00:33]} 1-0

[Event "December 19 Late 2023"]
[Site "https://www.chess.com"]
[Date "2023.12.19"]
[Round "8"]
[White "Lizak, Peter"]
[Black "Akhayan, Ruben"]
[Result "1-0"]
[Board "61"]
[TimeControl "180+1"]
[WhiteFideId "731595"]
[BlackFideId "204439"]
[WhiteElo "2420"]
[BlackElo "2141"]
[WhiteTeam "HUN"]
[BlackTeam "BEL"]
[WhiteClock "0:01:28"]
[BlackClock "0:01:03"]

1. d4 {[%clk 0:03:00]}  a6 {[%clk 0:02:58]} 2. e4 {[%clk 0:02:59]}  e6 {[%clk 0:02:58]} 3. c4 {[%clk 0:02:58]}  d5 {[%clk 0:02:58]} 4. cxd5 {[%clk 0:02:57]}  exd5 {[%clk 0:02:59]} 5. exd5 {[%clk 0:02:57]}  Nf6 {[%clk 0:02:59]} 6. Nc3 {[%clk 0:02:57]}  Nxd5 {[%clk 0:02:59]} 7. Bc4 {[%clk 0:02:57]}  Be6 {[%clk 0:02:56]} 8. Qb3 {[%clk 0:02:56]}  c6 {[%clk 0:02:13]} 9. Qxb7 {[%clk 0:02:46]}  Nd7 {[%clk 0:02:09]} 10. Bxd5 {[%clk 0:02:38]}  cxd5 {[%clk 0:02:08]} 11. Nxd5 {[%clk 0:02:34]}  Bxd5 {[%clk 0:02:07]} 12. Qxd5 {[%clk 0:02:33]}  Bb4+ {[%clk 0:02:08]} 13. Kf1 {[%clk 0:02:32]}  O-O {[%clk 0:02:08]} 14. Nf3 {[%clk 0:02:30]}  Rc8 {[%clk 0:01:55]} 15. a3 {[%clk 0:02:28]}  Ba5 {[%clk 0:01:50]} 16. Bg5 {[%clk 0:02:26]}  Qc7 {[%clk 0:01:43]} 17. g3 {[%clk 0:02:14]}  Bb6 {[%clk 0:01:31]} 18. Rc1 {[%clk 0:02:09]}  Qa7 {[%clk 0:01:25]} 19. Kg2 {[%clk 0:02:06]}  h6 {[%clk 0:01:25]} 20. Be7 {[%clk 0:02:04]}  Rfe8 {[%clk 0:01:25]} 21. Rxc8 {[%clk 0:02:01]}  Rxc8 {[%clk 0:01:24]} 22. b4 {[%clk 0:02:01]}  Nb8 {[%clk 0:01:18]} 23. Bc5 {[%clk 0:01:59]}  Bxc5 {[%clk 0:01:17]} 24. dxc5 {[%clk 0:01:59]}  Qc7 {[%clk 0:01:16]} 25. Rd1 {[%clk 0:01:51]}  Nc6 {[%clk 0:01:16]} 26. Qd6 {[%clk 0:01:52]}  Qb7 {[%clk 0:01:16]} 27. Qd7 {[%clk 0:01:34]}  Rc7 {[%clk 0:01:15]} 28. Qe8+ {[%clk 0:01:33]}  Kh7 {[%clk 0:01:14]} 29. Qe4+ {[%clk 0:01:32]}  g6 {[%clk 0:01:14]} 30. Rd6 {[%clk 0:01:32]}  Qc8 {[%clk 0:01:09]} 31. Qd5 {[%clk 0:01:30]}  Nd8 {[%clk 0:01:03]} 32. Rxd8 {[%clk 0:01:28]} 1-0

[Event "December 19 Late 2023"]
[Site "https://www.chess.com"]
[Date "2023.12.19"]
[Round "8"]
[White "Domingo Nunez, Alejandro"]
[Black "Chemin, Justo Reinaldo"]
[Result "1-0"]
[Board "65"]
[TimeControl "180+1"]
[WhiteFideId "22245561"]
[BlackFideId "2101580"]
[WhiteElo "2252"]
[BlackElo "1940"]
[WhiteTeam "ESP"]
[BlackTeam "BRA"]
[WhiteClock "0:00:18"]
[BlackClock "0:00:00"]

1. e4 {[%clk 0:03:00]}  e6 {[%clk 0:03:00]} 2. Nf3 {[%clk 0:03:00]}  d5 {[%clk 0:03:00]} 3. Nc3 {[%clk 0:03:00]}  c5 {[%clk 0:02:59]} 4. exd5 {[%clk 0:02:59]}  exd5 {[%clk 0:02:58]} 5. Bb5+ {[%clk 0:03:00]}  Nc6 {[%clk 0:02:53]} 6. O-O {[%clk 0:02:57]}  Be7 {[%clk 0:02:48]} 7. d4 {[%clk 0:02:56]}  c4 {[%clk 0:02:42]} 8. Ne5 {[%clk 0:02:53]}  Bd7 {[%clk 0:02:18]} 9. Qf3 {[%clk 0:01:51]}  Nf6 {[%clk 0:02:16]} 10. Nxd5 {[%clk 0:01:50]}  Nxe5 {[%clk 0:02:09]} 11. dxe5 {[%clk 0:01:45]}  Nxd5 {[%clk 0:01:52]} 12. Qxd5 {[%clk 0:01:44]}  Bxb5 {[%clk 0:01:49]} 13. Qxb5+ {[%clk 0:01:44]}  Qd7 {[%clk 0:01:48]} 14. Qxc4 {[%clk 0:01:44]}  Rc8 {[%clk 0:01:48]} 15. Qd3 {[%clk 0:01:38]}  Qxd3 {[%clk 0:01:45]} 16. cxd3 {[%clk 0:01:38]}  Rc2 {[%clk 0:01:44]} 17. Be3 {[%clk 0:01:35]}  Rxb2 {[%clk 0:01:34]} 18. Bxa7 {[%clk 0:01:35]}  O-O {[%clk 0:01:26]} 19. Rfb1 {[%clk 0:01:35]}  Rd2 {[%clk 0:00:59]} 20. Be3 {[%clk 0:01:22]}  Rxd3 {[%clk 0:00:57]} 21. Rxb7 {[%clk 0:01:22]}  Ba3 {[%clk 0:00:53]} 22. Rb3 {[%clk 0:01:22]}  Rfd8 {[%clk 0:00:49]} 23. g3 {[%clk 0:01:16]}  h5 {[%clk 0:00:42]} 24. h4 {[%clk 0:01:15]}  Rxb3 {[%clk 0:00:33]} 25. axb3 {[%clk 0:01:15]}  Bb2 {[%clk 0:00:33]} 26. Ra5 {[%clk 0:01:08]}  Rd3 {[%clk 0:00:27]} 27. Rb5 {[%clk 0:01:03]}  Kh7 {[%clk 0:00:20]} 28. Kf1 {[%clk 0:01:01]}  Kg6 {[%clk 0:00:18]} 29. Ke2 {[%clk 0:01:01]}  Rd7 {[%clk 0:00:18]} 30. f4 {[%clk 0:00:49]}  Kf5 {[%clk 0:00:12]} 31. Kf3 {[%clk 0:00:42]}  Rd3 {[%clk 0:00:09]} 32. Ke2 {[%clk 0:00:28]}  Rd7 {[%clk 0:00:06]} 33. e6+ {[%clk 0:00:25]}  Kxe6 {[%clk 0:00:06]} 34. Rxh5 {[%clk 0:00:25]}  Rc7 {[%clk 0:00:00]} 35. b4 {[%clk 0:00:18]} 1-0

[Event "December 19 Late 2023"]
[Site "https://www.chess.com"]
[Date "2023.12.19"]
[Round "8"]
[White "D`Arruda, Ricardo D."]
[Black "Adewumi, Tanitoluwa"]
[Result "0-1"]
[Board "67"]
[TimeControl "180+1"]
[WhiteFideId "100692"]
[BlackFideId "30966396"]
[WhiteElo "2539"]
[BlackElo "2325"]
[WhiteTeam "ARG"]
[BlackTeam "USA"]
[WhiteClock "0:00:02"]
[BlackClock "0:00:01"]

1. Nf3 {[%clk 0:02:57]}  Nf6 {[%clk 0:02:57]} 2. d4 {[%clk 0:02:57]}  e6 {[%clk 0:02:49]} 3. c4 {[%clk 0:02:56]}  b6 {[%clk 0:02:48]} 4. Nc3 {[%clk 0:02:56]}  Bb7 {[%clk 0:02:47]} 5. e3 {[%clk 0:02:55]}  d5 {[%clk 0:02:45]} 6. Bd3 {[%clk 0:02:54]}  Bd6 {[%clk 0:02:44]} 7. O-O {[%clk 0:02:53]}  O-O {[%clk 0:02:44]} 8. Qe2 {[%clk 0:02:52]}  Ne4 {[%clk 0:02:43]} 9. Bd2 {[%clk 0:02:51]}  Nd7 {[%clk 0:02:43]} 10. Rfd1 {[%clk 0:02:49]}  f5 {[%clk 0:02:42]} 11. Be1 {[%clk 0:02:48]}  Qe7 {[%clk 0:02:42]} 12. Rac1 {[%clk 0:02:41]}  a6 {[%clk 0:02:41]} 13. Nd2 {[%clk 0:02:27]}  Rf7 {[%clk 0:02:36]} 14. f3 {[%clk 0:02:26]}  Nxc3 {[%clk 0:02:36]} 15. bxc3 {[%clk 0:02:25]}  Re8 {[%clk 0:02:35]} 16. Bf2 {[%clk 0:02:12]}  Kh8 {[%clk 0:02:17]} 17. cxd5 {[%clk 0:02:10]}  exd5 {[%clk 0:02:17]} 18. Bxa6 {[%clk 0:02:06]}  Ba8 {[%clk 0:02:17]} 19. c4 {[%clk 0:01:55]}  f4 {[%clk 0:02:07]} 20. Re1 {[%clk 0:01:48]}  Qf8 {[%clk 0:01:49]} 21. Qd3 {[%clk 0:01:29]}  fxe3 {[%clk 0:01:45]} 22. Rxe3 {[%clk 0:01:30]}  Rd8 {[%clk 0:01:40]} 23. cxd5 {[%clk 0:01:28]}  Bxd5 {[%clk 0:01:41]} 24. Bc4 {[%clk 0:01:26]}  Nf6 {[%clk 0:01:40]} 25. g3 {[%clk 0:01:19]}  Bb4 {[%clk 0:01:34]} 26. f4 {[%clk 0:01:08]}  Bxd2 {[%clk 0:01:24]} 27. Qxd2 {[%clk 0:01:08]}  Bxc4 {[%clk 0:01:07]} 28. Rxc4 {[%clk 0:01:09]}  c5 {[%clk 0:01:07]} 29. Re1 {[%clk 0:00:54]}  Ng4 {[%clk 0:01:02]} 30. h3 {[%clk 0:00:50]}  Nf6 {[%clk 0:00:55]} 31. Qc2 {[%clk 0:00:42]}  Rfd7 {[%clk 0:00:36]} 32. dxc5 {[%clk 0:00:39]}  Rd2 {[%clk 0:00:34]} 33. Qf5 {[%clk 0:00:34]}  R8d5 {[%clk 0:00:24]} 34. Re5 {[%clk 0:00:24]}  g6 {[%clk 0:00:23]} 35. Qe6 {[%clk 0:00:20]}  Rd1+ {[%clk 0:00:18]} 36. Kg2 {[%clk 0:00:19]}  Rxe5 {[%clk 0:00:18]} 37. Qxe5 {[%clk 0:00:19]}  b5 {[%clk 0:00:15]} 38. Rc2 {[%clk 0:00:16]}  Rd5 {[%clk 0:00:12]} 39. Qe6 {[%clk 0:00:12]}  Kg7 {[%clk 0:00:05]} 40. c6 {[%clk 0:00:12]}  Qa8 {[%clk 0:00:04]} 41. Kh2 {[%clk 0:00:10]}  Rf5 {[%clk 0:00:02]} 42. c7 {[%clk 0:00:06]}  Rh5 {[%clk 0:00:01]} 43. c8=Q {[%clk 0:00:03]}  Rxh3+ {[%clk 0:00:02]} 44. Kxh3 {[%clk 0:00:02]}  Qh1# {[%clk 0:00:01]} 0-1

[Event "December 19 Late 2023"]
[Site "https://www.chess.com"]
[Date "2023.12.19"]
[Round "8"]
[White "WoolworthsManly"]
[Black "Sadovsky, Artem"]
[Result "0-1"]
[Board "69"]
[TimeControl "180+1"]
[BlackFideId "4155840"]
[WhiteElo "2665"]
[BlackElo "2314"]
[BlackTeam "FID"]
[WhiteClock "0:00:49"]
[BlackClock "0:01:57"]

1. e4 {[%clk 0:02:59]}  g6 {[%clk 0:03:00]} 2. h4 {[%clk 0:02:58]}  Bg7 {[%clk 0:03:01]} 3. h5 {[%clk 0:02:58]}  d5 {[%clk 0:03:02]} 4. exd5 {[%clk 0:02:56]}  Qxd5 {[%clk 0:03:01]} 5. Nc3 {[%clk 0:02:56]}  Qe5+ {[%clk 0:03:02]} 6. Be2 {[%clk 0:02:54]}  Bg4 {[%clk 0:03:02]} 7. d4 {[%clk 0:02:50]}  Bxe2 {[%clk 0:03:03]} 8. Ngxe2 {[%clk 0:02:49]}  Qa5 {[%clk 0:03:03]} 9. h6 {[%clk 0:02:48]}  Bf6 {[%clk 0:03:01]} 10. Bd2 {[%clk 0:02:45]}  c6 {[%clk 0:02:59]} 11. Ne4 {[%clk 0:02:41]}  Qd5 {[%clk 0:02:58]} 12. N2c3 {[%clk 0:02:31]}  Qxd4 {[%clk 0:02:56]} 13. Qe2 {[%clk 0:02:32]}  Nd7 {[%clk 0:02:53]} 14. O-O-O {[%clk 0:02:22]}  O-O-O {[%clk 0:02:53]} 15. Be3 {[%clk 0:02:22]}  Qb4 {[%clk 0:02:44]} 16. Bxa7 {[%clk 0:02:17]}  Qa5 {[%clk 0:02:29]} 17. Bd4 {[%clk 0:02:04]}  Bxd4 {[%clk 0:02:23]} 18. Rxd4 {[%clk 0:02:05]}  Ngf6 {[%clk 0:02:23]} 19. Rhd1 {[%clk 0:02:04]}  Nxe4 {[%clk 0:02:21]} 20. Qxe4 {[%clk 0:02:02]}  Qg5+ {[%clk 0:02:17]} 21. f4 {[%clk 0:02:00]}  Qxh6 {[%clk 0:02:17]} 22. Rxd7 {[%clk 0:01:21]}  Rxd7 {[%clk 0:02:12]} 23. Rxd7 {[%clk 0:01:21]}  Kxd7 {[%clk 0:02:13]} 24. Qd4+ {[%clk 0:01:21]}  Kc7 {[%clk 0:02:12]} 25. Qe5+ {[%clk 0:01:21]}  Kd7 {[%clk 0:02:12]} 26. Qxh8 {[%clk 0:01:19]}  Qxf4+ {[%clk 0:02:12]} 27. Kd1 {[%clk 0:01:18]}  Qf1+ {[%clk 0:02:11]} 28. Kd2 {[%clk 0:01:18]}  Qxg2+ {[%clk 0:02:11]} 29. Ne2 {[%clk 0:01:18]}  Qd5+ {[%clk 0:02:11]} 30. Ke3 {[%clk 0:01:17]}  Qxa2 {[%clk 0:02:08]} 31. Qxh7 {[%clk 0:01:12]}  Qxb2 {[%clk 0:02:07]} 32. Qxf7 {[%clk 0:01:12]}  Qxc2 {[%clk 0:02:08]} 33. Nd4 {[%clk 0:01:07]}  Qc3+ {[%clk 0:02:07]} 34. Ke4 {[%clk 0:01:06]}  Qe1+ {[%clk 0:02:06]} 35. Kd3 {[%clk 0:01:06]}  Qb1+ {[%clk 0:02:05]} 36. Ke3 {[%clk 0:01:05]}  Qg1+ {[%clk 0:02:03]} 37. Kd3 {[%clk 0:01:04]}  Qg3+ {[%clk 0:02:04]} 38. Kc4 {[%clk 0:01:03]}  b5+ {[%clk 0:02:04]} 39. Kb4 {[%clk 0:00:59]}  c5+ {[%clk 0:01:56]} 40. Kxc5 {[%clk 0:00:49]}  Qd6+ {[%clk 0:01:57]} 41. Kxb5 {[%clk 0:00:50]}  Qxd4 {[%clk 0:01:57]} 42. Qxg6 {[%clk 0:00:50]}  Qd5+ {[%clk 0:01:54]} 43. Kb4 {[%clk 0:00:49]}  Qd6+ {[%clk 0:01:54]} 44. Qxd6+ {[%clk 0:00:48]}  Kxd6 {[%clk 0:01:55]} 45. Kc4 {[%clk 0:00:48]}  Ke5 {[%clk 0:01:56]} 46. Kd3 {[%clk 0:00:49]}  Kf4 {[%clk 0:01:56]} 47. Ke2 {[%clk 0:00:49]}  Ke4 {[%clk 0:01:57]} 48. Kf2 {[%clk 0:00:48]}  Kd3 {[%clk 0:01:57]} 49. Kf3 {[%clk 0:00:49]}  e5 {[%clk 0:01:57]} 50. Kf2 {[%clk 0:00:50]}  e4 {[%clk 0:01:57]} 51. Ke1 {[%clk 0:00:49]}  Ke3 {[%clk 0:01:57]} 0-1

[Event "December 19 Late 2023"]
[Site "https://www.chess.com"]
[Date "2023.12.19"]
[Round "8"]
[White "Tifferet, Shakked"]
[Black "Rose, Felix"]
[Result "0-1"]
[Board "77"]
[TimeControl "180+1"]
[WhiteFideId "2811529"]
[BlackFideId "5105722"]
[WhiteElo "2142"]
[BlackElo "2039"]
[WhiteTeam "ISR"]
[BlackTeam "MEX"]
[WhiteClock "0:00:01"]
[BlackClock "0:00:26"]

1. d4 {[%clk 0:02:56]}  d5 {[%clk 0:02:59]} 2. Nc3 {[%clk 0:02:57]}  Nf6 {[%clk 0:02:58]} 3. Bf4 {[%clk 0:02:57]}  c5 {[%clk 0:02:55]} 4. e3 {[%clk 0:02:58]}  cxd4 {[%clk 0:02:55]} 5. exd4 {[%clk 0:02:57]}  a6 {[%clk 0:02:56]} 6. Nf3 {[%clk 0:02:55]}  Bf5 {[%clk 0:02:53]} 7. Ne5 {[%clk 0:02:51]}  Nc6 {[%clk 0:02:51]} 8. Nxc6 {[%clk 0:02:35]}  bxc6 {[%clk 0:02:51]} 9. Bd3 {[%clk 0:02:33]}  Bxd3 {[%clk 0:02:50]} 10. Qxd3 {[%clk 0:02:34]}  e6 {[%clk 0:02:50]} 11. O-O {[%clk 0:02:33]}  c5 {[%clk 0:02:49]} 12. Rfe1 {[%clk 0:02:20]}  cxd4 {[%clk 0:02:45]} 13. Qxd4 {[%clk 0:02:20]}  Be7 {[%clk 0:02:45]} 14. Qa4+ {[%clk 0:02:17]}  Qd7 {[%clk 0:02:45]} 15. Qxd7+ {[%clk 0:02:16]}  Kxd7 {[%clk 0:02:44]} 16. Na4 {[%clk 0:02:15]}  Bd8 {[%clk 0:02:27]} 17. Rad1 {[%clk 0:02:04]}  Kc6 {[%clk 0:02:17]} 18. a3 {[%clk 0:01:59]}  Ba5 {[%clk 0:02:12]} 19. b4 {[%clk 0:01:58]}  Bc7 {[%clk 0:02:11]} 20. Nc5 {[%clk 0:01:56]}  Bxf4 {[%clk 0:02:08]} 21. g3 {[%clk 0:01:56]}  Bd6 {[%clk 0:02:07]} 22. Nb3 {[%clk 0:01:55]}  Rhc8 {[%clk 0:02:00]} 23. Na5+ {[%clk 0:01:54]}  Kb6 {[%clk 0:01:51]} 24. c4 {[%clk 0:01:55]}  Bc7 {[%clk 0:01:44]} 25. c5+ {[%clk 0:01:54]}  Kb5 {[%clk 0:01:44]} 26. Nb3 {[%clk 0:01:51]}  a5 {[%clk 0:01:40]} 27. Nd4+ {[%clk 0:01:49]}  Ka4 {[%clk 0:01:36]} 28. b5 {[%clk 0:01:45]}  e5 {[%clk 0:01:34]} 29. b6 {[%clk 0:01:45]}  exd4 {[%clk 0:01:27]} 30. Rxd4+ {[%clk 0:01:34]}  Kb5 {[%clk 0:01:26]} 31. b7 {[%clk 0:01:35]}  Kxc5 {[%clk 0:01:25]} 32. Rd2 {[%clk 0:01:30]}  Kb6 {[%clk 0:01:23]} 33. Rb1+ {[%clk 0:01:27]}  Ka6 {[%clk 0:01:23]} 34. Rc2 {[%clk 0:01:23]}  Rab8 {[%clk 0:01:16]} 35. bxc8=Q+ {[%clk 0:00:51]}  Rxc8 {[%clk 0:01:16]} 36. a4 {[%clk 0:00:48]}  Ne8 {[%clk 0:00:55]} 37. Rb5 {[%clk 0:00:43]}  Rd8 {[%clk 0:00:52]} 38. Kf1 {[%clk 0:00:27]}  d4 {[%clk 0:00:52]} 39. Ke1 {[%clk 0:00:24]}  d3 {[%clk 0:00:52]} 40. Rc6+ {[%clk 0:00:24]}  Ka7 {[%clk 0:00:49]} 41. Kd2 {[%clk 0:00:22]}  Bd6 {[%clk 0:00:47]} 42. Kxd3 {[%clk 0:00:17]}  Bb4+ {[%clk 0:00:41]} 43. Ke3 {[%clk 0:00:14]}  Nf6 {[%clk 0:00:40]} 44. f3 {[%clk 0:00:12]}  Nd5+ {[%clk 0:00:39]} 45. Kf2 {[%clk 0:00:10]}  Rd7 {[%clk 0:00:38]} 46. Rc8 {[%clk 0:00:09]}  Nc3 {[%clk 0:00:36]} 47. Rbb8 {[%clk 0:00:04]}  Nxa4 {[%clk 0:00:37]} 48. Kg2 {[%clk 0:00:04]}  Nb6 {[%clk 0:00:35]} 49. Rf8 {[%clk 0:00:05]}  Bxf8 {[%clk 0:00:35]} 50. Rxf8 {[%clk 0:00:05]}  a4 {[%clk 0:00:36]} 51. Rg8 {[%clk 0:00:05]}  g6 {[%clk 0:00:36]} 52. Re8 {[%clk 0:00:05]}  h5 {[%clk 0:00:36]} 53. h4 {[%clk 0:00:04]}  Ka6 {[%clk 0:00:36]} 54. g4 {[%clk 0:00:03]}  a3 {[%clk 0:00:33]} 55. Re3 {[%clk 0:00:03]}  Nc4 {[%clk 0:00:32]} 56. Rc3 {[%clk 0:00:03]}  a2 {[%clk 0:00:31]} 57. Rc1 {[%clk 0:00:01]}  Rd2+ {[%clk 0:00:31]} 58. Kg3 {[%clk 0:00:02]}  Ne3 {[%clk 0:00:27]} 59. gxh5 {[%clk 0:00:01]}  gxh5 {[%clk 0:00:28]} 60. Kf4 {[%clk 0:00:01]}  Nc2 {[%clk 0:00:26]} 61. Ke4 {[%clk 0:00:01]}  a1=Q {[%clk 0:00:27]} 62. Rxc2 {[%clk 0:00:01]}  Rxc2 {[%clk 0:00:26]} 63. f4 {[%clk 0:00:01]}  Qa4+ {[%clk 0:00:26]} 64. Kf5 {[%clk 0:00:02]}  Rc5+ {[%clk 0:00:26]} 65. Kf6 {[%clk 0:00:02]}  Qd4+ {[%clk 0:00:27]} 66. Ke7 {[%clk 0:00:01]}  Rc7+ {[%clk 0:00:27]} 67. Kf8 {[%clk 0:00:01]}  f6 {[%clk 0:00:25]} 68. f5 {[%clk 0:00:01]}  Qd8# {[%clk 0:00:26]} 0-1

[Event "December 19 Late 2023"]
[Site "https://www.chess.com"]
[Date "2023.12.19"]
[Round "8"]
[White "Jesusesmifuerza"]
[Black "Hasanagic, Anel"]
[Result "0-1"]
[Board "78"]
[TimeControl "180+1"]
[BlackFideId "14605791"]
[WhiteElo "2199"]
[BlackElo "2209"]
[BlackTeam "SLO"]
[WhiteClock "0:00:00"]
[BlackClock "0:00:17"]

1. e4 {[%clk 0:02:59]}  c6 {[%clk 0:02:59]} 2. d4 {[%clk 0:02:57]}  d5 {[%clk 0:03:00]} 3. exd5 {[%clk 0:02:58]}  cxd5 {[%clk 0:03:00]} 4. Nc3 {[%clk 0:02:59]}  Nf6 {[%clk 0:03:01]} 5. Bf4 {[%clk 0:02:57]}  a6 {[%clk 0:03:01]} 6. Nf3 {[%clk 0:02:54]}  Bg4 {[%clk 0:02:57]} 7. Be2 {[%clk 0:02:54]}  Nc6 {[%clk 0:02:58]} 8. Ne5 {[%clk 0:02:51]}  Bxe2 {[%clk 0:02:57]} 9. Nxe2 {[%clk 0:02:52]}  Rc8 {[%clk 0:02:56]} 10. c3 {[%clk 0:02:51]}  e6 {[%clk 0:02:55]} 11. O-O {[%clk 0:02:49]}  Bd6 {[%clk 0:02:54]} 12. Nxc6 {[%clk 0:02:46]}  Rxc6 {[%clk 0:02:52]} 13. Bxd6 {[%clk 0:02:47]}  Qxd6 {[%clk 0:02:53]} 14. Nc1 {[%clk 0:02:48]}  O-O {[%clk 0:02:52]} 15. Nd3 {[%clk 0:02:48]}  Nd7 {[%clk 0:02:52]} 16. Re1 {[%clk 0:02:48]}  a5 {[%clk 0:02:51]} 17. Rc1 {[%clk 0:02:43]}  b5 {[%clk 0:02:48]} 18. Qb3 {[%clk 0:02:43]}  Rb8 {[%clk 0:02:45]} 19. a4 {[%clk 0:02:43]}  Rc4 {[%clk 0:02:29]} 20. axb5 {[%clk 0:02:37]}  a4 {[%clk 0:02:30]} 21. Qc2 {[%clk 0:02:32]}  Rxb5 {[%clk 0:02:28]} 22. Ra1 {[%clk 0:02:32]}  Nb6 {[%clk 0:02:07]} 23. Ne5 {[%clk 0:02:32]}  Rc8 {[%clk 0:02:02]} 24. Ra3 {[%clk 0:02:24]}  f6 {[%clk 0:01:50]} 25. Nd3 {[%clk 0:02:24]}  h6 {[%clk 0:01:45]} 26. Qe2 {[%clk 0:02:18]}  Rc6 {[%clk 0:01:38]} 27. Nc5 {[%clk 0:02:08]}  Rbxc5 {[%clk 0:01:35]} 28. dxc5 {[%clk 0:02:01]}  Qxc5 {[%clk 0:01:36]} 29. h3 {[%clk 0:01:54]}  e5 {[%clk 0:01:26]} 30. Qh5 {[%clk 0:01:52]}  Rc8 {[%clk 0:01:20]} 31. Qf5 {[%clk 0:01:49]}  Rd8 {[%clk 0:01:15]} 32. Re3 {[%clk 0:01:44]}  Qc8 {[%clk 0:01:13]} 33. Qg6 {[%clk 0:01:39]}  Qc7 {[%clk 0:01:08]} 34. Rg3 {[%clk 0:01:37]}  Kh8 {[%clk 0:01:08]} 35. h4 {[%clk 0:01:22]}  Rf8 {[%clk 0:00:56]} 36. Rg4 {[%clk 0:01:21]}  f5 {[%clk 0:00:54]} 37. Rb4 {[%clk 0:01:16]}  Rf6 {[%clk 0:00:55]} 38. Qe8+ {[%clk 0:01:09]}  Kh7 {[%clk 0:00:55]} 39. Qb5 {[%clk 0:01:06]}  f4 {[%clk 0:00:52]} 40. Raxa4 {[%clk 0:00:25]}  Nxa4 {[%clk 0:00:53]} 41. Rxa4 {[%clk 0:00:26]}  Rd6 {[%clk 0:00:53]} 42. Qe2 {[%clk 0:00:18]}  Qe7 {[%clk 0:00:47]} 43. Qg4 {[%clk 0:00:15]}  Rf6 {[%clk 0:00:39]} 44. h5 {[%clk 0:00:10]}  e4 {[%clk 0:00:37]} 45. Qd1 {[%clk 0:00:08]}  Rf5 {[%clk 0:00:34]} 46. Rd4 {[%clk 0:00:07]}  Qg5 {[%clk 0:00:33]} 47. Qd2 {[%clk 0:00:03]}  Qxh5 {[%clk 0:00:31]} 48. c4 {[%clk 0:00:04]}  f3 {[%clk 0:00:27]} 49. gxf3 {[%clk 0:00:00]}  Qxf3 {[%clk 0:00:17]} 0-1

[Event "December 19 Late 2023"]
[Site "https://www.chess.com"]
[Date "2023.12.19"]
[Round "8"]
[White "Guerra Tulcan, Lenin"]
[Black "Nielsen, Viktor Haarmark"]
[Result "1-0"]
[Board "80"]
[TimeControl "180+1"]
[WhiteFideId "3601382"]
[BlackFideId "1444492"]
[WhiteElo "2368"]
[BlackElo "2315"]
[WhiteTeam "ECU"]
[BlackTeam "DEN"]
[WhiteClock "0:00:16"]
[BlackClock "0:00:02"]

1. e4 {[%clk 0:02:59]}  e5 {[%clk 0:02:57]} 2. Nf3 {[%clk 0:02:58]}  Nc6 {[%clk 0:02:58]} 3. Bb5 {[%clk 0:02:58]}  a6 {[%clk 0:02:58]} 4. Ba4 {[%clk 0:02:58]}  Nf6 {[%clk 0:02:58]} 5. Qe2 {[%clk 0:02:58]}  b5 {[%clk 0:02:46]} 6. Bb3 {[%clk 0:02:58]}  Bc5 {[%clk 0:02:47]} 7. O-O {[%clk 0:02:57]}  d6 {[%clk 0:02:42]} 8. c3 {[%clk 0:02:57]}  O-O {[%clk 0:02:40]} 9. Rd1 {[%clk 0:02:54]}  Bb6 {[%clk 0:02:33]} 10. d3 {[%clk 0:02:51]}  Ne7 {[%clk 0:02:30]} 11. Nbd2 {[%clk 0:02:51]}  Ng6 {[%clk 0:02:30]} 12. Nf1 {[%clk 0:02:51]}  h6 {[%clk 0:02:25]} 13. a4 {[%clk 0:02:47]}  Bb7 {[%clk 0:01:55]} 14. Ng3 {[%clk 0:02:40]}  Re8 {[%clk 0:01:55]} 15. Nf5 {[%clk 0:02:36]}  d5 {[%clk 0:01:55]} 16. N3h4 {[%clk 0:01:59]}  Nxh4 {[%clk 0:01:50]} 17. Nxh4 {[%clk 0:01:58]}  Nxe4 {[%clk 0:01:30]} 18. dxe4 {[%clk 0:01:56]}  Qxh4 {[%clk 0:01:30]} 19. exd5 {[%clk 0:01:40]}  Rad8 {[%clk 0:01:25]} 20. axb5 {[%clk 0:01:36]}  axb5 {[%clk 0:01:24]} 21. Be3 {[%clk 0:01:33]}  Bxe3 {[%clk 0:01:23]} 22. Qxe3 {[%clk 0:01:33]}  Qf4 {[%clk 0:00:26]} 23. Ra7 {[%clk 0:00:58]}  Qxe3 {[%clk 0:00:24]} 24. fxe3 {[%clk 0:00:59]}  Rb8 {[%clk 0:00:25]} 25. e4 {[%clk 0:00:53]}  Red8 {[%clk 0:00:22]} 26. Kf2 {[%clk 0:00:50]}  Kf8 {[%clk 0:00:22]} 27. Ke3 {[%clk 0:00:50]}  Ke7 {[%clk 0:00:22]} 28. Rda1 {[%clk 0:00:48]}  Kd6 {[%clk 0:00:20]} 29. R1a5 {[%clk 0:00:45]}  Bc8 {[%clk 0:00:20]} 30. Bc2 {[%clk 0:00:40]}  Bd7 {[%clk 0:00:18]} 31. R5a6+ {[%clk 0:00:29]}  Rb6 {[%clk 0:00:18]} 32. Rxb6+ {[%clk 0:00:29]}  cxb6 {[%clk 0:00:19]} 33. Rb7 {[%clk 0:00:29]}  Ra8 {[%clk 0:00:13]} 34. Rxb6+ {[%clk 0:00:29]}  Ke7 {[%clk 0:00:14]} 35. d6+ {[%clk 0:00:16]}  Kf6 {[%clk 0:00:12]} 36. Bb3 {[%clk 0:00:16]}  Rd8 {[%clk 0:00:09]} 37. Bd5 {[%clk 0:00:15]}  Be8 {[%clk 0:00:08]} 38. b3 {[%clk 0:00:15]}  Kg5 {[%clk 0:00:07]} 39. c4 {[%clk 0:00:15]}  bxc4 {[%clk 0:00:06]} 40. bxc4 {[%clk 0:00:16]}  f5 {[%clk 0:00:02]} 41. c5 {[%clk 0:00:16]} 1-0